fUSD/lending_fUSD_20250208
["ID","MTS","AMOUNT","RATE_DAILY","PERIOD"]
[352314308,1739039439735,-817.21111779,9.999e-05,2]
[352314310,1739039439748,-548.72783516,9.999e-05,2]
[352314313,1739039439760,-67.03104705,9.999e-05,2]
[352314315,1739039439770,-500.0,9.999e-05,2]
[352314317,1739039439779,-871.19,0.00010136,2]
[352314319,1739039439789,-1432.97,0.00010136,2]
[352314321,1739039439799,-500.0,0.00010136,2]
[352314323,1739039439808,-871.19,0.00010273,2]
[352314325,1739039439818,-1432.97,0.00010273,2]
[352314327,1739039439827,-500.0,0.00010273,2]
[352314329,1739039439836,-367.57084638,0.0001041,2]
[352314331,1739039439844,-1896.55,0.0001041,2]
[352314333,1739039439856,-500.0,0.0001041,2]
[352314335,1739039439866,-1128.28,0.0001041,2]
[352314337,1739039439875,-1003.03,0.0001041,2]
[352314339,1739039439884,-730.82,0.0001041,2]
[352314341,1739039439894,-1958.24,0.0001041,2]
[352314343,1739039439904,-1359.35,0.0001041,2]
[352314345,1739039439913,-2000.94,0.0001041,2]
[352314347,1739039439923,-1186.03,0.0001041,2]
[352314349,1739039439933,-1107.04,0.0001041,2]
[352314351,1739039439942,-500.0,0.0001041,2]
[352314353,1739039439952,-984.42,0.0001041,2]
[352314355,1739039439961,-546.52,0.0001041,2]
[352314357,1739039439971,-2531.59,0.0001041,2]
[352314359,1739039439981,-742.2,0.0001041,2]
[352314385,1739039440225,-1116.15,0.0001041,2]
[352314387,1739039440235,-1277.83,0.0001041,2]
[352314389,1739039440245,-525.53,0.0001041,2]
[352314391,1739039440257,-708.47,0.0001041,2]
[352314393,1739039440267,-871.19,0.0001041,2]
[352314396,1739039440276,-1295.09810708,0.0001041,2]
[352314399,1739039440302,-137.87189292,0.0001041,2]
[352314401,1739039440312,-306.26223205,0.00010474,2]
[352314404,1739039440331,-571.77776795,0.00010474,2]
[352314406,1739039440340,-1000.0,0.00010521,2]
[352314408,1739039440349,-646.08,0.00010547,2]
[352314410,1739039440360,-1925.88,0.00010547,2]
[352314413,1739039440369,-1026.82,0.00010547,2]
[352314415,1739039440379,-915.41,0.00010547,2]
[352314417,1739039440390,-1332.13,0.00010547,2]
[352314419,1739039440399,-274.78770427,0.00010547,2]
[352314421,1739039440411,-288.07999384,0.00010547,2]
[352314428,1739039440469,-500.0,9.999e-05,2]
[352314430,1739039440479,-363.80230189,0.00010547,2]
[352314432,1739039440488,-1311.56,0.00010547,2]
[352314434,1739039440497,-1896.55,0.00010547,2]
[352314436,1739039440506,-500.0,0.00010547,2]
[352314438,1739039440516,-1128.28,0.00010547,2]
[352314440,1739039440525,-1003.03,0.00010547,2]
[352314442,1739039440534,-730.82,0.00010547,2]
[352314444,1739039440543,-1958.24,0.00010547,2]
[352314446,1739039440554,-1359.35,0.00010547,2]
[352314448,1739039440563,-2000.94,0.00010547,2]
[352314450,1739039440572,-1186.03,0.00010547,2]
[352314452,1739039440581,-1107.04,0.00010547,2]
[352314454,1739039440590,-500.0,0.00010547,2]
[352314456,1739039440599,-984.42,0.00010547,2]
[352314457,1739039440610,-546.52,0.00010547,2]
[352314458,1739039440619,-2531.59,0.00010547,2]
[352314459,1739039440628,-742.2,0.00010547,2]
[352314460,1739039440637,-1116.15,0.00010547,2]
[352314461,1739039440646,-1277.83,0.00010547,2]
[352314462,1739039440655,-525.53,0.00010547,2]
[352314463,1739039440664,-708.47,0.00010547,2]
[352314464,1739039440675,-871.19,0.00010547,2]
[352314465,1739039440684,-1432.97,0.00010547,2]
[352314466,1739039440693,-152.0,0.00010661,3]
[352314467,1739039440703,-646.08,0.00010684,2]
[352314468,1739039440712,-1925.88,0.00010684,2]
[352314469,1739039440722,-1026.82,0.00010684,2]
[352314470,1739039440731,-915.41,0.00010684,2]
[352314471,1739039440740,-1332.13,0.00010684,2]
[352314472,1739039440749,-926.67,0.00010684,2]
[352314474,1739039440759,-1311.56,0.00010684,2]
[352314476,1739039440768,-1896.55,0.00010684,2]
[352314478,1739039440777,-478.84324031,0.00010684,2]
[352314480,1739039440788,-21.15675969,0.00010684,2]
[352314482,1739039440798,-1128.28,0.00010684,2]
[352314484,1739039440807,-1003.03,0.00010684,2]
[352314486,1739039440816,-730.82,0.00010684,2]
[352314488,1739039440826,-1958.24,0.00010684,2]
[352314490,1739039440835,-670.08698994,0.00010684,2]
[352314492,1739039440846,-358.3636843,0.00010684,2]
[352314495,1739039440858,-263.80999301,0.00010684,2]
[352314497,1739039440869,-67.08933275,0.00010684,2]
[352314499,1739039440879,-2000.94,0.00010684,2]
[352314501,1739039440887,-1186.03,0.00010684,2]
[352314503,1739039440896,-1107.04,0.00010684,2]
[352314505,1739039440906,-984.42,0.00010684,2]
[352314507,1739039440915,-546.52,0.00010684,2]
[352314509,1739039440924,-2531.59,0.00010684,2]
[352314511,1739039440934,-742.2,0.00010684,2]
[352314513,1739039440945,-1116.15,0.00010684,2]
[352314515,1739039440961,-1277.83,0.00010684,2]
[352314517,1739039440970,-525.53,0.00010684,2]
[352314519,1739039440979,-708.47,0.00010684,2]
[352314521,1739039440990,-871.19,0.00010684,2]
[352314523,1739039440999,-1432.97,0.00010684,2]
[352314525,1739039441008,-2777.77777,0.0001077,2]
[352314527,1739039441017,-200.2,0.00010787,2]
[352314528,1739039441028,-160.39278618,0.000108,2]
[352314530,1739039441037,-1927.153,0.00010805,2]
[352314532,1739039441048,-172.763,0.00010805,2]
[352314535,1739039441058,-1774.4918,0.00010805,2]
[352314537,1739039441067,-500.0,0.00010806,2]
[352314538,1739039441076,-500.0,0.00010806,2]
[352314540,1739039441086,-500.0,0.00010806,2]
[352314543,1739039441098,-500.0,0.00010806,2]
[352314544,1739039441113,-500.0,0.00010806,2]
[352314546,1739039441122,-500.0,0.00010806,2]
[352314549,1739039441131,-500.0,0.00010806,2]
[352314550,1739039441141,-1216.26,0.00010806,2]
[352314553,1739039441151,-500.0,0.00010806,2]
[352314555,1739039441161,-500.0,0.00010806,2]
[352314556,1739039441175,-500.0,0.00010806,2]
[352314558,1739039441186,-500.0,0.00010806,2]
[352314560,1739039441195,-500.0,0.00010806,2]
[352314562,1739039441208,-500.0,0.00010806,2]
[352314565,1739039441218,-500.0,0.00010806,2]
[352314566,1739039441227,-709.24,0.00010806,2]
[352314568,1739039441236,-500.0,0.00010806,2]
[352314571,1739039441248,-500.0,0.00010806,2]
[352314573,1739039441258,-500.0,0.00010806,2]
[352314575,1739039441267,-792.24,0.00010806,2]
[352314577,1739039441276,-500.0,0.00010806,2]
[352314579,1739039441286,-738.01,0.00010806,2]
[352314581,1739039441295,-854.06,0.00010806,2]
[352314583,1739039441305,-693.39,0.00010806,2]
[352314585,1739039441314,-500.0,0.00010806,2]
[352314587,1739039441323,-500.0,0.00010806,2]
[352314589,1739039441332,-697.13,0.00010806,2]
[352314591,1739039441341,-675.32,0.00010806,2]
[352314593,1739039441350,-500.0,0.00010806,2]
[352314595,1739039441360,-500.0,0.00010806,2]
[352314597,1739039441370,-500.0,0.00010806,2]
[352314599,1739039441381,-500.0,0.00010806,2]
[352314601,1739039441389,-500.0,0.00010806,2]
[352314603,1739039441398,-500.0,0.00010806,2]
[352314605,1739039441408,-500.0,0.00010806,2]
[352314607,1739039441417,-500.0,0.00010806,2]
[352314608,1739039441426,-500.0,0.00010806,2]
[352314610,1739039441436,-500.0,0.00010806,2]
[352314612,1739039441445,-500.0,0.00010806,2]
[352314614,1739039441454,-500.0,0.00010806,2]
[352314617,1739039441464,-561.99,0.00010806,2]
[352314619,1739039441474,-500.0,0.00010806,2]
[352314621,1739039441483,-500.0,0.00010806,2]
[352314623,1739039441492,-630.52,0.00010806,2]
[352314625,1739039441500,-775.86,0.00010806,2]
[352314626,1739039441510,-860.94,0.00010806,2]
[352314628,1739039441520,-500.0,0.00010806,2]
[352314630,1739039441529,-500.0,0.00010806,2]
[352314632,1739039441538,-500.0,0.00010806,2]
[352314634,1739039441547,-500.0,0.00010806,2]
[352314637,1739039441556,-500.0,0.00010806,2]
[352314638,1739039441566,-500.0,0.00010806,2]
[352314640,1739039441575,-500.0,0.00010806,2]
[352314643,1739039441584,-500.0,0.00010806,2]
[352314644,1739039441593,-999.37,0.00010806,2]
[352314646,1739039441603,-813.64,0.00010806,2]
[352314648,1739039441613,-500.0,0.00010806,2]
[352314651,1739039441622,-500.0,0.00010806,2]
[352314652,1739039441632,-1009.08,0.00010806,2]
[352314654,1739039441641,-1006.11,0.00010806,2]
[352314657,1739039441651,-500.0,0.00010806,2]
[352314659,1739039441660,-500.0,0.00010806,2]
[352314661,1739039441670,-505.45,0.00010806,2]
[352314662,1739039441679,-500.0,0.00010806,2]
[352314664,1739039441688,-500.0,0.00010806,2]
[352314667,1739039441698,-349.99898963,0.00010806,2]
[352314669,1739039441707,-511.40839371,0.00010806,2]
[352314670,1739039441716,-500.0,0.00010806,2]
[352314672,1739039441725,-595.39,0.00010806,2]
[352314674,1739039441735,-500.0,0.00010806,2]
[352314676,1739039441743,-500.0,0.00010806,2]
[352314678,1739039441753,-500.0,0.00010806,2]
[352314680,1739039441762,-1010.25,0.00010806,2]
[352314682,1739039441771,-500.0,0.00010806,2]
[352314684,1739039441779,-500.0,0.00010806,2]
[352314686,1739039441788,-618.06796829,0.00010806,2]
[352314688,1739039441797,-500.0,0.00010806,2]
[352314690,1739039441806,-721.01,0.00010806,2]
[352314692,1739039441815,-500.0,0.00010806,2]
[352314694,1739039441824,-500.0,0.00010806,2]
[352314696,1739039441834,-500.0,0.00010806,2]
[352314698,1739039441843,-673.98,0.00010806,2]
[352314700,1739039441854,-500.0,0.00010806,2]
[352314703,1739039441863,-500.0,0.00010806,2]
[352314704,1739039441872,-899.76,0.00010806,2]
[352314706,1739039441882,-738.11,0.00010806,2]
[352314708,1739039441891,-500.0,0.00010806,2]
[352314711,1739039441900,-500.0,0.00010806,2]
[352314712,1739039441910,-500.0,0.00010806,2]
[352314715,1739039441919,-500.0,0.00010806,2]
[352314717,1739039441928,-698.87,0.00010806,2]
[352314719,1739039441938,-646.08,0.00010821,2]
[352314721,1739039441947,-1925.88,0.00010821,2]
[352314723,1739039441955,-1026.82,0.00010821,2]
[352314725,1739039441964,-915.41,0.00010821,2]
[352314727,1739039441973,-1332.13,0.00010821,2]
[352314729,1739039441982,-926.67,0.00010821,2]
[352314731,1739039441991,-1311.56,0.00010821,2]
[352314733,1739039442000,-1896.55,0.00010821,2]
[352314735,1739039442010,-500.0,0.00010821,2]
[352314736,1739039442019,-1003.03,0.00010821,2]
[352314739,1739039442030,-1128.28,0.00010821,2]
[352314740,1739039442041,-730.82,0.00010821,2]
[352314743,1739039442050,-1958.24,0.00010821,2]
[352314744,1739039442060,-1359.35,0.00010821,2]
[352314746,1739039442069,-2000.94,0.00010821,2]
[352314748,1739039442078,-1186.03,0.00010821,2]
[352314751,1739039442087,-1107.04,0.00010821,2]
[352314752,1739039442096,-984.42,0.00010821,2]
[352314754,1739039442106,-546.52,0.00010821,2]
[352314756,1739039442115,-2531.59,0.00010821,2]
[352314758,1739039442124,-742.2,0.00010821,2]
[352314760,1739039442134,-1116.15,0.00010821,2]
[352314763,1739039442143,-1277.83,0.00010821,2]
[352314764,1739039442152,-525.53,0.00010821,2]
[352314767,1739039442161,-708.47,0.00010821,2]
[352314768,1739039442173,-1432.97,0.00010821,2]
[352314771,1739039442183,-871.19,0.00010821,2]
[352314772,1739039442192,-920.203,0.00010838,2]
[352314775,1739039442204,-930.704,0.00010838,2]
[352314777,1739039442213,-469.702,0.00010838,2]
[352314778,1739039442223,-4024.0,0.00010838,2]
[352314780,1739039442232,-161.336,0.00010838,2]
[352314782,1739039442241,-1272.0,0.00010838,2]
[352314784,1739039442251,-2023.0,0.00010838,2]
[352314786,1739039442260,-150.0,0.00010838,2]
[352314788,1739039442270,-500.0,0.00010878,2]
[352314790,1739039442287,-1636.39,0.00010878,2]
[352314792,1739039442296,-1537.47,0.00010878,2]
[352314794,1739039442306,-1147.623733,0.00010878,2]
[352314796,1739039442316,-881.36,0.00010878,2]
[352314798,1739039442326,-203.89722,0.00010878,2]
[352314800,1739039442336,-1006.77,0.00010878,2]
[352314802,1739039442346,-1355.97,0.00010878,2]
[352314804,1739039442356,-155.534578,0.00010878,2]
[352314806,1739039442365,-810.52,0.00010878,2]
[352314808,1739039442374,-500.0,0.00010878,2]
[352314810,1739039442383,-900.34,0.00010878,2]
[352314812,1739039442392,-777.36,0.00010878,2]
[352314814,1739039442402,-1048.415779,0.00010878,2]
[352314816,1739039442411,-669.58,0.00010878,2]
[352314818,1739039442421,-1018.61,0.00010878,2]
[352314820,1739039442430,-500.0,0.00010878,2]
[352314822,1739039442440,-500.0,0.00010878,2]
[352314824,1739039442449,-938.37,0.00010878,2]
[352314826,1739039442459,-847.28,0.00010878,2]
[352314828,1739039442468,-1507.89,0.00010878,2]
[352314830,1739039442478,-1316.05,0.00010878,2]
[352314832,1739039442487,-500.0,0.00010878,2]
[352314834,1739039442497,-1593.77,0.00010878,2]
[352314836,1739039442506,-1209.72,0.00010878,2]
[352314838,1739039442515,-1024.91,0.00010878,2]
[352314840,1739039442525,-3742.57,0.00010878,2]
[352314842,1739039442534,-1770.17,0.00010878,2]
[352314844,1739039442544,-1046.08,0.00010878,2]
[352314846,1739039442554,-1821.87,0.00010878,2]
[352314848,1739039442565,-1788.11,0.00010878,2]
[352314850,1739039442574,-2751.41,0.00010878,2]
[352314852,1739039442584,-804.9,0.00010878,2]
[352314854,1739039442594,-1066.43,0.00010878,2]
[352314856,1739039442606,-1493.61,0.00010878,2]
[352314858,1739039442617,-1525.76,0.00010878,2]
[352314860,1739039442627,-1193.68,0.00010878,2]
[352314862,1739039442638,-500.0,0.00010879,2]
[352314864,1739039442653,-500.0,0.00010879,2]
[352314866,1739039442662,-500.0,0.00010879,2]
[352314868,1739039442673,-500.0,0.00010879,2]
[352314870,1739039442683,-500.0,0.00010879,2]
[352314873,1739039442693,-500.0,0.00010879,2]
[352314876,1739039442702,-500.0,0.00010879,2]
[352314879,1739039442711,-500.0,0.00010879,2]
[352314883,1739039442720,-500.0,0.00010879,2]
[352314887,1739039442729,-500.0,0.00010879,2]
[352314891,1739039442739,-500.0,0.00010879,2]
[352314895,1739039442749,-500.0,0.00010879,2]
[352314898,1739039442758,-500.0,0.00010879,2]
[352314902,1739039442768,-500.0,0.00010879,2]
[352314905,1739039442777,-500.0,0.00010879,2]
[352314909,1739039442787,-500.0,0.00010879,2]
[352314912,1739039442797,-500.0,0.00010879,2]
[352314915,1739039442807,-500.0,0.00010879,2]
[352314917,1739039442816,-500.0,0.00010879,2]
[352314919,1739039442825,-500.0,0.00010879,2]
[352314921,1739039442834,-500.0,0.00010879,2]
[352314923,1739039442843,-500.0,0.00010879,2]
[352314925,1739039442852,-500.0,0.00010879,2]
[352314927,1739039442864,-500.0,0.00010879,2]
[352314929,1739039442873,-500.0,0.00010879,2]
[352314931,1739039442882,-500.0,0.00010879,2]
[352314933,1739039442891,-500.0,0.00010879,2]
[352314935,1739039442900,-504.03533627,0.00010879,2]
[352314937,1739039442909,-500.0,0.00010879,2]
[352314939,1739039442919,-500.0,0.00010879,2]
[352314941,1739039442928,-500.0,0.00010879,2]
[352314943,1739039442937,-500.0,0.00010879,2]
[352314945,1739039442946,-500.0,0.00010879,2]
[352314947,1739039442956,-500.0,0.00010879,2]
[352314949,1739039442966,-500.0,0.00010879,2]
[352314951,1739039442975,-500.0,0.00010879,2]
[352314953,1739039442984,-500.0,0.00010879,2]
[352314955,1739039442993,-500.0,0.00010879,2]
[352314957,1739039443003,-500.0,0.00010879,2]
[352314959,1739039443012,-500.0,0.00010879,2]
[352314961,1739039443021,-500.0,0.00010879,2]
[352314963,1739039443032,-500.0,0.00010879,2]
[352314965,1739039443041,-500.0,0.00010879,2]
[352314967,1739039443050,-500.0,0.00010879,2]
[352314969,1739039443059,-500.0,0.00010879,2]
[352314971,1739039443069,-500.0,0.00010879,2]
[352314973,1739039443078,-500.0,0.00010879,2]
[352314975,1739039443087,-500.0,0.00010879,2]
[352314977,1739039443096,-500.0,0.00010879,2]
[352314979,1739039443106,-500.0,0.00010879,2]
[352314981,1739039443116,-515.24296962,0.00010879,2]
[352314983,1739039443125,-500.0,0.00010879,2]
[352314985,1739039443135,-500.0,0.00010879,2]
[352314987,1739039443144,-500.0,0.00010879,2]
[352314989,1739039443153,-500.0,0.00010879,2]
[352314991,1739039443163,-500.0,0.00010879,2]
[352314993,1739039443175,-500.0,0.00010879,2]
[352314995,1739039443184,-500.0,0.00010879,2]
[352314997,1739039443194,-500.0,0.00010879,2]
[352314999,1739039443204,-500.0,0.00010879,2]
[352315001,1739039443215,-500.0,0.00010879,2]
[352315003,1739039443224,-500.0,0.00010879,2]
[352315005,1739039443233,-500.0,0.00010879,2]
[352315007,1739039443242,-500.0,0.00010879,2]
[352315009,1739039443252,-506.14080545,0.00010879,2]
[352315011,1739039443263,-500.0,0.00010879,2]
[352315013,1739039443273,-500.0,0.00010879,2]
[352315015,1739039443283,-500.0,0.00010879,2]
[352315017,1739039443291,-500.0,0.00010879,2]
[352315019,1739039443301,-500.0,0.00010879,2]
[352315021,1739039443310,-500.0,0.00010879,2]
[352315023,1739039443319,-500.0,0.00010879,2]
[352315025,1739039443328,-500.0,0.00010879,2]
[352315027,1739039443338,-250.25875132,0.00010879,2]
[352315031,1739039443371,-249.74124868,0.00010879,2]
[352315033,1739039443381,-500.0,0.00010879,2]
[352315035,1739039443390,-596.33542048,0.00010879,2]
[352315037,1739039443402,-500.0,0.00010879,2]
[352315039,1739039443411,-500.0,0.00010879,2]
[352315041,1739039443421,-500.0,0.00010879,2]
[352315043,1739039443430,-357.7146739,0.00010879,2]
[352315045,1739039443439,-500.0,0.00010879,2]
[352315047,1739039443448,-500.0,0.00010879,2]
[352315049,1739039443458,-500.0,0.00010879,2]
[352315051,1739039443468,-242.87518274,0.00010879,2]
[352315053,1739039443477,-500.0,0.00010879,2]
[352315055,1739039443486,-500.0,0.00010879,2]
[352315057,1739039443495,-500.0,0.00010879,2]
[352315059,1739039443504,-513.16,0.00010879,2]
[352315061,1739039443514,-500.0,0.00010879,2]
[352315063,1739039443523,-500.0,0.00010879,2]
[352315065,1739039443532,-500.0,0.00010879,2]
[352315067,1739039443542,-500.0,0.00010879,2]
[352315069,1739039443551,-500.0,0.00010879,2]
[352315071,1739039443560,-500.0,0.00010879,2]
[352315073,1739039443570,-500.0,0.00010879,2]
[352315075,1739039443579,-500.0,0.00010879,2]
[352315077,1739039443588,-568.47,0.00010879,2]
[352315079,1739039443598,-500.0,0.00010879,2]
[352315081,1739039443607,-500.0,0.00010879,2]
[352315083,1739039443616,-500.0,0.00010879,2]
[352315085,1739039443625,-500.0,0.00010879,2]
[352315087,1739039443635,-500.0,0.00010879,2]
[352315089,1739039443644,-500.0,0.00010879,2]
[352315091,1739039443653,-500.0,0.00010879,2]
[352315093,1739039443663,-500.0,0.00010879,2]
[352315095,1739039443672,-500.0,0.00010879,2]
[352315097,1739039443682,-500.0,0.00010879,2]
[352315099,1739039443691,-500.0,0.00010879,2]
[352315101,1739039443701,-500.0,0.00010879,2]
[352315103,1739039443710,-500.0,0.00010879,2]
[352315105,1739039443720,-500.0,0.00010879,2]
[352315107,1739039443729,-500.0,0.00010879,2]
[352315109,1739039443738,-500.0,0.00010879,2]
[352315111,1739039443748,-500.0,0.00010879,2]
[352315113,1739039443757,-500.0,0.00010879,2]
[352315115,1739039443767,-500.0,0.00010879,2]
[352315117,1739039443775,-500.0,0.00010879,2]
[352315119,1739039443785,-500.0,0.00010879,2]
[352315121,1739039443794,-500.0,0.00010879,2]
[352315123,1739039443803,-631.90445912,0.00010879,2]
[352315125,1739039443813,-500.0,0.00010879,2]
[352315127,1739039443822,-500.0,0.00010879,2]
[352315129,1739039443832,-500.0,0.00010879,2]
[352315131,1739039443842,-500.0,0.00010879,2]
[352315133,1739039443851,-500.0,0.00010879,2]
[352315135,1739039443862,-500.0,0.00010879,2]
[352315137,1739039443872,-500.0,0.00010879,2]
[352315139,1739039443882,-500.0,0.00010879,2]
[352315141,1739039443892,-500.0,0.00010879,2]
[352315143,1739039443901,-500.0,0.00010879,2]
[352315145,1739039443911,-500.0,0.00010879,2]
[352315147,1739039443920,-500.0,0.00010879,2]
[352315149,1739039443929,-500.0,0.00010879,2]
[352315151,1739039443938,-500.0,0.00010879,2]
[352315153,1739039443947,-500.0,0.00010879,2]
[352315155,1739039443957,-500.0,0.00010879,2]
[352315157,1739039443966,-520.74321088,0.00010879,2]
[352315159,1739039443975,-586.10374856,0.00010879,2]
[352315161,1739039443985,-500.0,0.00010879,2]
[352315163,1739039443993,-500.0,0.00010879,2]
[352315165,1739039444002,-539.23942346,0.00010879,2]
[352315167,1739039444012,-500.0,0.00010879,2]
[352315169,1739039444021,-500.0,0.00010879,2]
[352315171,1739039444030,-500.0,0.00010879,2]
[352315173,1739039444039,-500.0,0.00010879,2]
[352315175,1739039444048,-500.0,0.00010879,2]
[352315177,1739039444057,-500.0,0.00010879,2]
[352315179,1739039444067,-500.0,0.00010879,2]
[352315181,1739039444076,-500.0,0.00010879,2]
[352315183,1739039444085,-500.0,0.00010879,2]
[352315185,1739039444095,-500.0,0.00010879,2]
[352315187,1739039444104,-500.0,0.00010879,2]
[352315189,1739039444113,-500.0,0.00010879,2]
[352315191,1739039444122,-500.0,0.00010879,2]
[352315193,1739039444132,-500.0,0.00010879,2]
[352315195,1739039444141,-500.0,0.00010879,2]
[352315197,1739039444150,-612.76,0.00010879,2]
[352315199,1739039444159,-500.0,0.00010879,2]
[352315201,1739039444171,-500.0,0.00010879,2]
[352315203,1739039444180,-500.0,0.00010879,2]
[352315205,1739039444189,-500.0,0.00010879,2]
[352315207,1739039444200,-500.0,0.00010879,2]
[352315213,1739039444397,-500.0,0.00010879,2]
[352315215,1739039444407,-500.0,0.00010879,2]
[352315217,1739039444417,-500.0,0.00010879,2]
[352315219,1739039444426,-500.0,0.00010879,2]
[352315221,1739039444436,-500.0,0.00010879,2]
[352315223,1739039444445,-570.48,0.00010879,2]
[352315225,1739039444455,-500.0,0.00010879,2]
[352315227,1739039444465,-500.0,0.00010879,2]
[352315229,1739039444476,-500.0,0.00010879,2]
[352315231,1739039444485,-552.42289723,0.00010879,2]
[352315233,1739039444495,-500.0,0.00010879,2]
[352315235,1739039444504,-500.0,0.00010879,2]
[352315237,1739039444514,-1178.51,0.00010879,2]
[352315239,1739039444523,-500.0,0.00010879,2]
[352315241,1739039444533,-500.0,0.00010879,2]
[352315243,1739039444542,-500.0,0.00010879,2]
[352315245,1739039444551,-500.0,0.00010879,2]
[352315247,1739039444561,-500.0,0.00010879,2]
[352315249,1739039444571,-556.76,0.00010879,2]
[352315251,1739039444580,-500.0,0.00010879,2]
[352315253,1739039444590,-659.61,0.00010879,2]
[352315256,1739039444600,-189.17225587,0.00010879,2]
[352315258,1739039444611,-500.0,0.00010879,2]
[352315260,1739039444620,-482.31389799,0.00010879,2]
[352315261,1739039444629,-534.94322166,0.00010879,2]
[352315262,1739039444638,-500.0,0.00010879,2]
[352315263,1739039444648,-500.0,0.00010879,2]
[352315264,1739039444657,-500.0,0.00010879,2]
[352315265,1739039444668,-500.0,0.00010879,2]
[352315266,1739039444677,-653.66,0.00010879,2]
[352315267,1739039444687,-501.04964395,0.00010879,2]
[352315268,1739039444696,-500.0,0.00010879,2]
[352315269,1739039444705,-500.0,0.00010879,2]
[352315270,1739039444715,-500.0,0.00010879,2]
[352315271,1739039444724,-500.0,0.00010879,2]
[352315272,1739039444734,-500.0,0.00010879,2]
[352315273,1739039444743,-500.0,0.00010879,2]
[352315274,1739039444752,-500.0,0.00010879,2]
[352315275,1739039444762,-500.0,0.00010879,2]
[352315276,1739039444771,-500.0,0.00010879,2]
[352315277,1739039444782,-500.0,0.00010879,2]
[352315278,1739039444791,-500.0,0.00010879,2]
[352315279,1739039444801,-500.0,0.00010879,2]
[352315280,1739039444810,-500.0,0.00010879,2]
[352315281,1739039444822,-500.0,0.00010879,2]
[352315282,1739039444831,-518.23,0.00010879,2]
[352315283,1739039444841,-500.0,0.00010879,2]
[352315284,1739039444851,-783.24,0.00010879,2]
[352315285,1739039444860,-500.0,0.00010879,2]
[352315286,1739039444869,-500.0,0.00010879,2]
[352315287,1739039444879,-500.0,0.00010879,2]
[352315288,1739039444888,-500.0,0.00010879,2]
[352315289,1739039444897,-500.0,0.00010879,2]
[352315290,1739039444907,-574.96,0.00010879,2]
[352315291,1739039444916,-253.40489674,0.00010879,2]
[352315292,1739039444927,-500.0,0.00010879,2]
[352315293,1739039444936,-500.0,0.00010879,2]
[352315294,1739039444945,-500.0,0.00010879,2]
[352315296,1739039444955,-500.0,0.00010879,2]
[352315298,1739039444964,-500.62622198,0.00010879,2]
[352315300,1739039444974,-500.0,0.00010879,2]
[352315302,1739039444983,-500.0,0.00010879,2]
[352315304,1739039444993,-760.97,0.00010879,2]
[352315306,1739039445003,-500.0,0.00010879,2]
[352315308,1739039445012,-500.0,0.00010879,2]
[352315310,1739039445021,-500.0,0.00010879,2]
[352315312,1739039445031,-554.06848747,0.00010879,2]
[352315314,1739039445040,-500.0,0.00010879,2]
[352315316,1739039445050,-500.0,0.00010879,2]